bitfinex/quotes_ETHUSD_20250422
["timestamp","ask_amount","ask_price","bid_price","bid_amount"]
[1745355175415,3.47857136,1697.9,1697.3,10.97904126]
[1745355175616,3.47857136,1697.9,1697.4,0.7849]
[1745355178403,1.07816818,1697.9,1697.4,0.7849]
[1745355179440,1.07816818,1697.9,1697.4,3.38428336]
[1745355180332,1.07816818,1697.9,1697.5,3.0]
[1745355181941,5.89020634,1697.8,1697.4,3.38428336]
[1745355182240,6.66445281,1697.7,1697.3,1.20832885]
[1745355182411,2.02946591,1697.7,1697.3,0.7635]
[1745355182814,0.15960779,1697.6,1697.3,0.7635]
[1745355183014,2.02946591,1697.7,1697.3,0.7635]
[1745355183213,0.15960779,1697.6,1697.3,0.7635]
[1745355183443,2.02946591,1697.7,1697.3,0.7635]
[1745355183646,0.15891179,1697.5,1697.3,0.7635]
[1745355183845,2.02946591,1697.7,1697.3,0.7635]
[1745355184013,0.1582157,1697.4,1697.3,0.7635]
[1745355184215,2.02946591,1697.7,1697.3,0.7635]
[1745355184516,0.15960779,1697.6,1697.3,0.7635]
[1745355184846,2.02946591,1697.7,1697.3,0.7635]
[1745355185047,0.15891179,1697.5,1697.3,0.7635]
[1745355185216,2.02946591,1697.7,1697.3,0.7635]
[1745355185415,0.15890321,1697.6,1697.3,0.7635]
[1745355185616,2.02946591,1697.7,1697.3,0.7635]
[1745355185827,0.15890321,1697.6,1697.3,0.7635]
[1745355186037,2.33683502,1697.7,1697.3,0.7635]
[1745355186233,0.15820721,1697.5,1697.3,0.7635]
[1745355186546,2.33683502,1697.7,1697.3,0.7635]
[1745355186735,0.15643269,1697.4,1697.3,0.7635]
[1745355187048,0.15643269,1697.4,1697.3,1.19429049]
[1745355187250,2.33683502,1697.7,1697.3,1.19429049]
[1745355187420,0.15643269,1697.4,1697.3,1.19429049]
[1745355187752,2.33683502,1697.7,1697.3,1.19429049]
[1745355187918,0.15643269,1697.4,1697.3,1.19429049]
[1745355188118,2.33683502,1697.7,1697.3,1.19429049]
[1745355188318,0.15643269,1697.4,1697.3,1.19429049]
[1745355188513,2.33683502,1697.7,1697.3,1.19429049]
[1745355188735,0.15643269,1697.4,1697.3,1.19429049]
[1745355188939,2.33683502,1697.7,1697.3,1.19429049]
[1745355189137,0.15643269,1697.4,1697.3,1.19429049]
[1745355189320,2.33683502,1697.7,1697.3,1.19429049]
[1745355189520,0.15643269,1697.4,1697.3,1.19429049]
[1745355189721,2.33683502,1697.7,1697.3,1.19429049]
[1745355189924,0.15643269,1697.4,1697.3,1.19429049]
[1745355190124,2.33683502,1697.7,1697.3,1.19429049]
[1745355190338,0.15643269,1697.4,1697.3,1.19429049]
[1745355190555,1.08136911,1697.7,1697.3,1.19429049]
[1745355190855,1.77852665,1697.7,1697.3,1.19429049]
[1745355191034,0.15782478,1697.6,1697.3,1.19429049]
[1745355191446,1.77852665,1697.7,1697.3,1.19429049]
[1745355191635,0.15712878,1697.5,1697.3,1.19429049]
[1745355191841,1.77852665,1697.7,1697.3,1.19429049]
[1745355192042,0.15643269,1697.4,1697.3,1.19429049]
[1745355192242,1.77852665,1697.7,1697.3,1.19429049]
[1745355192555,0.15643269,1697.4,1697.3,1.19429049]
[1745355192733,1.77852665,1697.7,1697.3,1.19429049]
[1745355192938,0.15643269,1697.4,1697.3,1.19429049]
[1745355193134,1.77852665,1697.7,1697.3,1.19429049]
[1745355193335,0.15643269,1697.4,1697.3,1.19429049]
[1745355193547,1.77852665,1697.7,1697.3,1.19429049]
[1745355193743,0.15643269,1697.4,1697.3,1.19429049]
[1745355193936,1.77852665,1697.7,1697.3,1.19429049]
[1745355194557,0.15735504,1697.6,1697.3,1.19429049]
[1745355195054,0.15665903,1697.5,1697.3,1.19429049]
[1745355195462,1.77852665,1697.7,1697.3,1.19429049]
[1745355195628,0.15596295,1697.4,1697.3,1.19429049]
[1745355195829,1.77852665,1697.7,1697.3,1.19429049]
[1745355196028,0.15735504,1697.6,1697.3,1.19429049]
[1745355196231,1.77852665,1697.7,1697.3,1.19429049]
[1745355196559,0.15735504,1697.6,1697.3,1.19429049]
[1745355196866,1.77852665,1697.7,1697.3,1.19429049]
[1745355197067,0.14642239,1697.5,1697.3,1.19429049]
[1745355197269,1.77852665,1697.7,1697.3,1.19429049]
[1745355197470,0.1457263,1697.4,1697.3,1.19429049]
[1745355197670,1.77852665,1697.7,1697.3,1.19429049]
[1745355197839,0.1457263,1697.4,1697.3,1.19429049]
[1745355198041,1.77852665,1697.7,1697.3,1.19429049]
[1745355198539,0.14711839,1697.6,1697.3,1.19429049]
[1745355198965,7.66884934,1697.7,1697.3,1.19429049]
[1745355199168,6.70575028,1697.4,1696.9,0.8199]
[1745355199672,0.14474823,1697.3,1696.9,3.8199]
[1745355200052,6.70575028,1697.4,1696.9,3.8199]
[1745355200252,0.14405198,1697.2,1696.9,3.8199]
[1745355200475,0.14474823,1697.3,1696.9,3.8199]
[1745355200776,0.14335565,1697.1,1696.9,3.8199]
[1745355201073,11.76675028,1697.4,1696.7,0.8199]
[1745355201074,6.70646693,1697.2,1696.7,0.8199]
[1745355201240,0.14171954,1697.0,1696.7,3.8199]
[1745355201442,0.14185203,1697.1,1696.7,0.8199]
[1745355201641,0.14045912,1696.9,1696.7,0.8199]
[1745355201858,1.1216456,1697.2,1696.7,3.8199]
[1745355202063,0.13976255,1696.8,1696.7,3.8199]
[1745355202252,2.60385635,1697.2,1696.7,3.8199]
[1745355202459,0.13901053,1696.8,1696.7,3.8199]
[1745355202665,2.60385635,1697.2,1696.7,3.8199]
[1745355202860,0.13901053,1696.8,1696.7,3.8199]
[1745355203061,2.60385635,1697.2,1696.8,0.8199]
[1745355203062,0.3073456,1697.2,1696.8,0.8199]
[1745355206559,1.1216456,1697.2,1696.8,0.8199]
[1745355208081,7.01382807,1697.2,1696.6,6.86635133]
[1745355208661,5.89253862,1697.1,1696.6,6.86635133]
[1745355209950,6.65087368,1697.0,1696.6,1.26696797]
[1745355210251,6.5582075,1696.9,1696.5,3.8225]
[1745355211284,0.66508737,1696.9,1696.5,3.8225]
[1745355211489,6.55826199,1696.9,1696.5,0.8225]
[1745355211793,0.66508737,1696.9,1696.5,0.8225]
[1745355212775,0.15405323,1696.8,1696.5,0.8225]
[1745355213086,0.66508737,1696.9,1696.5,0.8225]
[1745355213280,0.15321724,1696.7,1696.5,0.8225]
[1745355213480,0.66508737,1696.9,1696.5,0.8225]
[1745355213864,0.15405323,1696.8,1696.5,1.27049839]
[1745355214265,0.66508737,1696.9,1696.5,1.27049839]
[1745355214594,0.15321724,1696.7,1696.5,1.27049839]
[1745355214787,0.66508737,1696.9,1696.5,1.27049839]
[1745355214995,0.15238115,1696.6,1696.5,1.27049839]
[1745355215198,0.66508737,1696.9,1696.5,1.27049839]
[1745355215362,0.15405323,1696.8,1696.5,1.27049839]
[1745355215673,0.66508737,1696.9,1696.5,1.27049839]
[1745355215874,0.15321724,1696.7,1696.5,1.27049839]
[1745355216074,6.55822157,1696.9,1696.5,1.27049839]
[1745355216301,0.15238115,1696.6,1696.5,1.27049839]
[1745355216466,0.15238115,1696.6,1696.3,9.67839179]
[1745355216664,1.72001967,1696.8,1696.3,9.67839179]
[1745355217184,0.15321724,1696.7,1696.3,9.67839179]
[1745355218108,6.04718016,1696.7,1696.3,4.19901154]
[1745355218326,0.60471802,1696.6,1696.3,3.7579]
[1745355218481,0.60471802,1696.6,1696.3,0.7579]
[1745355218802,0.15109354,1696.5,1696.3,0.7579]
[1745355219008,0.15109354,1696.5,1696.1,0.7579]
[1745355220677,0.15109354,1696.5,1696.2,3.0]
[1745355225877,0.15109354,1696.5,1696.3,0.8024]
[1745355226312,1.79241967,1696.8,1696.3,0.8024]
[1745355226476,0.14811292,1696.4,1696.3,0.8024]
[1745355226690,1.79241967,1696.8,1696.3,0.8024]
[1745355226891,0.14811292,1696.4,1696.3,0.8024]
[1745355227093,1.79241967,1696.8,1696.3,0.8024]
[1745355227306,0.14811292,1696.4,1696.3,0.8024]
[1745355227506,1.79241967,1696.8,1696.3,0.8024]
[1745355227988,0.15062149,1696.7,1696.3,6.72289179]
[1745355228188,0.15062149,1696.7,1696.3,7.39518097]
[1745355231792,0.15062149,1696.7,1696.4,0.8024]
[1745355232020,0.30743382,1696.8,1696.4,0.8024]
[1745355232233,0.15062149,1696.7,1696.4,0.8024]
[1745355234809,0.15062149,1696.7,1696.4,3.8024]
[1745355235012,0.15062149,1696.7,1696.4,4.8419181]
[1745355237315,0.15062149,1696.7,1696.4,7.44431415]
[1745355238045,0.15062149,1696.7,1696.4,6.40479605]
[1745355239245,0.15062149,1696.7,1696.4,3.8024]
[1745355239850,0.15062149,1696.7,1696.4,0.8024]
[1745355243348,0.15062149,1696.7,1696.5,0.86134109]
[1745355243547,0.15062149,1696.7,1696.5,0.8024]
[1745355243917,0.15062149,1696.7,1696.5,1.1428796]
[1745355244751,0.15062149,1696.7,1696.5,3.74527565]
[1745355245372,0.15062149,1696.7,1696.5,4.1428796]
[1745355245563,0.15062149,1696.7,1696.6,0.8024]
[1745355248056,0.15062149,1696.7,1696.6,1.24551397]
[1745355248242,0.15062149,1696.7,1696.6,1.70411333]
[1745355249030,0.15062149,1696.7,1696.6,10.62395777]
[1745355249234,6.08186821,1697.2,1696.6,9.82155777]
[1745355249457,0.30737474,1697.3,1696.9,5.91984444]
[1745355249762,0.30737474,1697.3,1697.0,3.8024]
[1745355258480,0.7633,1697.2,1696.7,6.71814444]
[1745355258638,7.35172384,1697.2,1696.7,0.7983]
[1745355258839,7.35172384,1697.2,1696.7,3.7983]
[1745355261370,6.65574207,1697.1,1696.7,3.0]
[1745355261538,6.65619928,1697.0,1696.7,3.0]
[1745355261738,11.71219928,1697.0,1696.5,0.7983]
[1745355261969,1.17121993,1696.9,1696.5,0.7983]
[1745355262172,1.17121993,1696.9,1696.5,3.7983]
[1745355262469,1.17121993,1696.9,1696.5,0.7983]
[1745355262772,1.17121993,1696.9,1696.5,3.7983]
[1745355264269,5.8193,1697.0,1696.6,5.91984444]
[1745355264565,5.056,1697.0,1696.7,0.7983]
[1745355264755,5.056,1697.0,1696.7,3.7983]
[1745355264965,6.38926639,1697.1,1696.7,3.7983]
[1745355266478,0.30739818,1697.1,1696.7,3.7983]
[1745355267672,0.30739818,1697.1,1696.7,4.8138618]
[1745355268774,0.8135,1697.0,1696.6,0.43747351]
[1745355269076,0.8135,1697.0,1696.5,3.8065]
[1745355270746,0.8135,1697.0,1696.5,0.8065]
[1745355270747,6.70635186,1697.0,1696.5,0.8065]
[1745355270947,6.70635186,1697.0,1696.5,3.8065]
[1745355271980,0.8135,1697.0,1696.5,3.8065]
[1745355272190,0.8135,1697.0,1696.5,4.77913444]
[1745355273571,0.8135,1697.0,1696.5,3.8065]
[1745355278994,6.70662542,1696.9,1696.4,0.8065]
[1745355279175,0.8135,1696.9,1696.4,0.8065]
[1745355279985,1.12090942,1696.9,1696.4,0.8065]
[1745355280302,7.01401378,1696.9,1696.4,0.8654405]
[1745355280603,8.30470684,1696.9,1696.4,0.8065]
[1745355280802,2.41160248,1696.9,1696.4,0.8065]
[1745355281505,2.41160248,1696.9,1696.4,0.86544051]
[1745355282270,0.8061,1696.7,1696.3,8.91984444]
[1745355284401,0.8061,1696.7,1696.3,3.0]
[1745355284603,5.054,1696.7,1696.1,0.43641822]
[1745355284801,0.8061,1696.4,1695.9,10.97384444]
[1745355285282,0.8061,1696.4,1695.9,5.054]
[1745355285576,0.8061,1696.4,1696.0,3.0]
[1745355287304,0.8061,1696.4,1696.0,8.91984444]
[1745355287471,0.8061,1696.4,1696.1,0.7691]
[1745355288603,0.8061,1696.4,1696.0,8.91984444]
[1745355288786,0.8061,1696.4,1696.0,10.46811423]
[1745355294891,0.8061,1696.2,1695.6,3.05896792]
[1745355295093,0.30746849,1696.1,1695.6,3.05896792]
[1745355295298,0.8061,1696.0,1695.6,4.48029124]
[1745355297287,0.8061,1696.0,1695.6,4.93046345]
[1745355302019,0.8061,1696.0,1695.6,0.45017221]
[1745355302224,0.55,1695.7,1694.6,6.05]
[1745355302418,0.55,1695.5,1694.8,5.91984444]
[1745355302716,0.8245,1695.4,1694.9,0.59198444]
[1745355302886,0.8245,1695.4,1694.9,6.68144444]
[1745355303617,0.8245,1695.4,1694.9,5.91984444]
[1745355303787,0.8245,1695.4,1695.0,3.0]
[1745355304488,0.8245,1695.4,1694.9,5.91984444]
[1745355304835,0.8245,1695.4,1695.0,3.0]
[1745355305033,0.8245,1695.3,1695.0,3.0]
[1745355305197,0.8245,1695.3,1694.8,3.73571369]
[1745355305393,0.8245,1695.3,1694.8,3.0]
[1745355305815,0.8245,1695.3,1695.0,3.0]
[1745355310751,0.8245,1695.3,1695.1,5.91984444]
[1745355311048,0.8245,1695.5,1695.2,3.59198444]
[1745355311236,6.90636821,1695.7,1695.3,5.91984444]
[1745355312012,6.90636821,1695.7,1695.3,6.74094444]
[1745355312447,6.90636821,1695.7,1695.4,3.0]
[1745355312638,0.8245,1695.7,1695.4,3.0]
[1745355313138,0.8245,1695.7,1695.4,4.01855751]
[1745355313342,0.30757162,1695.8,1695.5,5.97882242]
[1745355313515,0.30757162,1695.8,1695.6,3.0]
[1745355313716,0.7621,1695.9,1695.6,3.0]
[1745355315851,0.7621,1695.9,1695.6,3.8211]
[1745355316055,0.7621,1695.9,1695.6,4.79519444]
[1745355318551,0.7621,1695.9,1695.6,3.0]
[1745355319227,0.7621,1695.9,1695.5,3.0]
[1745355319228,6.65881654,1695.9,1695.5,3.0]
[1745355319427,0.7621,1695.7,1695.3,0.44463066]
[1745355319632,0.7621,1695.7,1695.2,10.97384444]
[1745355319833,1.42800386,1695.7,1695.2,10.97384444]
[1745355320033,1.42800386,1695.7,1695.3,3.0]
[1745355320234,1.42800386,1695.7,1694.9,0.8211]
[1745355320235,0.7621,1695.5,1694.9,0.8211]
[1745355320530,0.7621,1695.4,1694.9,3.0]
[1745355321241,0.7621,1695.4,1695.1,3.0]
[1745355321560,0.7621,1695.4,1694.8,6.60200681]
[1745355321858,0.7621,1695.4,1695.1,3.0]
[1745355322959,0.7621,1695.4,1694.9,8.91984444]
[1745355323359,0.7621,1695.4,1694.9,8.90984444]
[1745355323542,0.7621,1695.4,1695.1,5.91984444]
[1745355324057,0.7621,1695.4,1694.9,8.91984444]
[1745355324267,0.7621,1695.4,1694.9,10.38991957]
[1745355324871,0.7621,1695.4,1694.9,8.91984444]
[1745355325073,6.66045086,1695.4,1694.9,8.91984444]
[1745355326167,0.7621,1695.4,1694.9,8.91984444]
[1745355327463,6.66051362,1695.4,1694.9,8.91984444]
[1745355328275,0.8291,1695.2,1694.9,8.91984444]
[1745355332167,0.8291,1695.2,1694.9,5.91984444]
[1745355332573,1.53265077,1695.2,1694.9,5.91984444]
[1745355333074,0.8291,1695.2,1694.9,5.91984444]
[1745355333280,0.8291,1695.2,1694.8,5.48996175]
[1745355333439,0.8291,1695.2,1694.8,5.054]
[1745355333645,6.72820557,1695.2,1694.7,8.91984444]
[1745355333846,0.67282056,1695.1,1694.7,8.91984444]
[1745355334374,0.8291,1695.2,1694.7,8.91984444]
[1745355337880,0.8291,1695.2,1694.7,9.37147967]
[1745355339973,0.8291,1695.2,1694.9,5.91984444]
[1745355340151,0.8291,1695.2,1694.9,6.75094444]
[1745355341648,0.30763217,1695.3,1694.9,6.75094444]
[1745355341837,1.12323217,1695.3,1694.9,6.75094444]
[1745355342039,1.12323217,1695.3,1694.9,7.42603888]
[1745355344249,1.12323217,1695.3,1694.9,6.75094444]
[1745355359813,0.55,1695.2,1694.7,9.29483523]
[1745355359966,0.55,1695.2,1694.9,3.0]
[1745355360168,0.7768,1695.1,1694.8,3.0]
[1745355360376,1.08441904,1695.1,1694.8,3.0]
[1745355362097,0.30761904,1695.1,1694.8,3.0]
[1745355362277,0.30761904,1695.1,1694.9,5.91984444]
[1745355362591,0.7768,1695.4,1694.9,5.91984444]
[1745355362793,0.30764203,1695.3,1694.9,5.91984444]
[1745355365402,1.3268,1695.2,1694.8,0.7892]
[1745355366676,1.3268,1695.2,1694.7,9.37147967]
[1745355367101,0.55,1695.2,1694.7,9.37147967]
[1745355367315,0.7768,1695.1,1694.7,9.37147967]
[1745355367487,0.7768,1695.1,1694.7,3.0]
[1745355368005,0.7768,1695.1,1694.6,6.8392]
[1745355369103,6.85866821,1695.1,1694.6,3.7892]
[1745355369302,0.7768,1695.0,1694.6,3.0]
[1745355371112,0.7768,1695.0,1694.5,3.0]
[1745355371793,0.7768,1695.0,1694.6,5.91984444]
[1745355371985,1.96786682,1695.0,1694.6,5.91984444]
[1745355375411,1.96786682,1695.0,1694.6,6.71094444]
[1745355375582,1.96786682,1695.0,1694.5,3.44355004]
[1745355375785,1.96786682,1695.0,1694.6,5.91984444]
[1745355378046,0.30761911,1694.9,1694.6,5.91984444]
[1745355378324,0.7866,1694.8,1694.6,5.91984444]
[1745355378887,0.7866,1694.8,1694.5,3.0]
[1745355382616,0.30761911,1694.9,1694.5,3.0]
[1745355382617,0.30761911,1694.9,1694.6,5.91984444]
[1745355382803,1.07701911,1694.9,1694.6,5.91984444]
[1745355385018,0.7694,1694.8,1694.4,0.74349872]
[1745355385214,0.7694,1694.8,1694.2,3.7509]
[1745355385421,6.85126821,1694.8,1694.5,3.0]
[1745355386644,12.75180231,1694.8,1694.4,5.91984444]
[1745355386828,6.85126821,1694.8,1694.4,5.91984444]
[1745355387207,0.7772,1694.6,1694.1,3.0]
[1745355387410,0.7772,1694.6,1694.3,3.0]
[1745355391239,0.7772,1694.7,1694.4,5.91984444]
[1745355392217,1.46310682,1694.7,1694.4,5.91984444]
[1745355392711,1.08481911,1694.9,1694.5,0.7649]
[1745355393114,1.08481911,1694.9,1694.6,5.91984444]
[1745355396452,1.08481911,1694.9,1694.4,6.68474444]
[1745355396623,0.7772,1694.8,1694.4,5.91984444]
[1745355397542,0.7772,1694.8,1694.4,6.68474444]
[1745355401352,0.67563318,1695.2,1694.4,6.68474444]
[1745355401353,6.08186821,1695.3,1694.8,0.7649]
[1745355401552,0.7772,1695.4,1695.1,5.91984444]
[1745355401754,0.3076378,1695.3,1695.1,0.7649]
[1745355401943,5.8674,1695.6,1695.2,8.91984444]
[1745355402138,6.08186821,1695.8,1695.4,5.91984444]
[1745355402139,7.20484911,1695.8,1695.4,5.91984444]
[1745355402352,0.72048491,1695.7,1695.4,5.91984444]
[1745355403957,7.20484911,1695.8,1695.4,5.91984444]
[1745355404818,1.3654,1695.7,1695.2,8.91984444]
[1745355405321,0.8154,1695.6,1695.2,3.0]
[1745355405656,0.8154,1695.6,1695.2,8.91984444]
[1745355405953,1.5416795,1695.6,1695.2,8.91984444]
[1745355406152,0.55,1695.5,1695.2,8.91984444]
[1745355406340,1.5416795,1695.6,1695.2,9.35936797]
[1745355406546,0.8154,1695.6,1695.2,9.35936797]
[1745355407953,7.20484911,1695.8,1695.4,6.74184444]
[1745355408157,0.3075809,1695.8,1695.6,5.91984444]
[1745355410153,0.3075809,1695.8,1695.5,5.91984444]
[1745355410578,1.1229809,1695.8,1695.5,5.91984444]
[1745355410859,1.1229809,1695.8,1695.4,6.74184444]
[1745355411226,1.82494969,1695.8,1695.4,0.822]
[1745355411454,1.82494969,1695.8,1695.4,5.91984444]
[1745355413067,1.1229809,1695.8,1695.4,5.91984444]
[1745355416971,0.3075809,1695.8,1695.6,5.91984444]
[1745355419176,0.3075809,1695.8,1695.7,3.0]
[1745355419366,6.08186821,1696.0,1695.7,4.26702036]
[1745355419677,6.08186821,1696.0,1695.8,5.91984444]
[1745355424683,1.11246149,1696.2,1695.8,5.91984444]
[1745355425559,7.00812308,1696.2,1695.8,5.91984444]
[1745355425750,5.89592725,1696.1,1695.7,3.44332036]
[1745355426281,0.8049,1696.0,1695.7,3.44332036]
[1745355426777,2.12142254,1696.2,1695.8,6.74354444]
[1745355426942,0.30756149,1696.2,1695.8,6.74354444]
[1745355429144,0.8049,1696.1,1695.8,6.74354444]
[1745355429346,0.8049,1696.1,1695.8,5.91984444]
[1745355430279,0.8049,1696.1,1695.7,4.26702036]
[1745355430579,0.30756149,1696.2,1695.8,6.74354444]
[1745355430777,0.30756149,1696.2,1695.8,7.46223092]
[1745355430947,0.30756149,1696.2,1695.8,6.74354444]
[1745355431582,6.20315414,1696.2,1695.8,6.74354444]
[1745355431753,6.20315414,1696.2,1695.7,1.21412036]
[1745355431754,0.55,1696.1,1695.7,1.21412036]
[1745355431954,6.67751023,1696.0,1695.5,6.69064444]
[1745355433388,12.57400099,1696.0,1695.5,6.69064444]
[1745355433585,1.2574001,1695.9,1695.5,6.69064444]
[1745355433887,0.7811,1695.8,1695.4,3.0]
[1745355434496,6.67803356,1695.8,1695.4,3.0]
[1745355434679,0.7811,1695.8,1695.4,3.0]
[1745355434864,0.30756327,1695.7,1695.4,3.0]
[1745355435576,0.30756327,1695.7,1695.3,11.74064444]
[1745355435962,0.30756327,1695.7,1695.3,13.25927537]
[1745355436892,0.30756327,1695.7,1695.3,12.48847537]
[1745355437499,0.30756327,1695.7,1695.3,5.91984444]
[1745355437905,0.7811,1695.6,1695.3,5.91984444]
[1745355438260,0.7811,1695.6,1695.2,9.36550928]
[1745355438467,0.7811,1695.6,1695.2,6.36550928]
[1745355440516,0.7811,1695.6,1695.0,0.7708]
[1745355440517,0.55,1695.4,1695.0,5.91984444]
[1745355440800,0.7811,1695.3,1695.0,0.44328162]
[1745355440997,0.7811,1695.3,1694.9,3.0]
[1745355441801,6.6798754,1695.3,1694.8,6.69064444]
[1745355441964,0.7811,1695.3,1694.8,6.69064444]
[1745355442365,6.67987943,1695.3,1694.8,5.91984444]
[1745355442565,1.568569,1695.3,1694.8,5.91984444]
[1745355442778,7.46735101,1695.3,1694.8,5.91984444]
[1745355443100,6.68625101,1695.3,1694.8,5.91984444]
[1745355443398,0.7811,1695.2,1694.8,5.91984444]
[1745355444215,0.7811,1695.2,1694.8,3.0]
[1745355444216,0.7811,1695.1,1694.8,3.0]
[1745355444388,0.7811,1695.1,1694.7,0.4494794]
[1745355444606,0.7811,1695.0,1694.6,5.91984444]
[1745355444784,1.44916994,1695.0,1694.6,5.91984444]
[1745355444975,7.34897214,1695.0,1694.6,5.91984444]
[1745355445406,7.34897214,1695.0,1694.2,5.91984444]
[1745355445407,0.7811,1694.6,1694.2,5.91984444]
[1745355446506,0.7811,1694.8,1694.4,6.69064444]
[1745355446815,0.7811,1694.8,1694.4,7.35970888]
[1745355447717,11.13086821,1694.9,1694.6,5.91984444]
[1745355447924,5.049,1694.9,1694.6,5.91984444]
[1745355448423,0.55,1694.9,1694.4,9.69064444]
[1745355450090,0.30764638,1694.8,1694.4,9.69064444]
[1745355450293,0.30764638,1694.8,1694.4,8.91984444]
[1745355450621,0.7811,1694.7,1694.4,8.91984444]
[1745355452286,7.17061459,1694.8,1694.4,8.91984444]
[1745355452617,0.71706146,1694.7,1694.3,5.049]
[1745355454310,0.71706146,1694.7,1694.2,9.36587684]
[1745355454514,0.7811,1694.6,1694.2,9.36587684]
[1745355455020,0.7811,1694.6,1694.2,8.91984444]
[1745355455270,1.52100119,1694.6,1694.2,8.91984444]
[1745355456435,0.55,1694.5,1694.2,8.91984444]
[1745355456600,0.55,1694.5,1694.1,3.0]
[1745355456601,0.7811,1694.4,1694.1,3.0]
[1745355457519,0.7811,1694.6,1694.2,5.91984444]
[1745355457693,0.7811,1694.6,1694.2,6.69064444]
[1745355457893,0.7811,1694.6,1694.0,0.29754605]
[1745355458093,0.7811,1694.6,1694.2,3.0]
[1745355458522,0.55,1694.5,1694.2,3.0]
[1745355458818,0.7811,1694.6,1694.2,3.0]
[1745355459439,0.7811,1694.6,1694.1,6.69064444]
[1745355459639,0.55,1694.5,1694.1,5.91984444]
[1745355459943,6.63186821,1694.5,1694.1,5.91984444]
[1745355460146,7.37316503,1694.5,1694.1,5.91984444]
[1745355460451,0.7811,1694.4,1694.0,0.4318881]
[1745355460743,0.7811,1694.4,1693.9,6.69064444]
[1745355461240,0.7811,1694.4,1693.9,7.13583841]
[1745355462452,0.7811,1694.4,1693.9,6.36503841]
[1745355462841,0.7751,1694.2,1693.9,6.36503841]
[1745355463956,0.7751,1694.2,1693.7,6.74694444]
[1745355464160,5.90333021,1694.0,1693.6,5.91984444]
[1745355464317,0.55,1693.8,1693.4,0.8271]
[1745355464516,0.55,1693.8,1693.2,6.05]
[1745355464517,0.7751,1693.7,1693.3,5.91984444]
[1745355464816,0.7751,1693.7,1693.3,6.36081283]
[1745355465031,0.7751,1693.7,1693.3,5.91984444]
[1745355465229,0.55,1693.6,1693.3,5.91984444]
[1745355465442,0.85781225,1693.6,1693.3,5.91984444]
[1745355465659,0.30781225,1693.6,1693.3,5.91984444]
[1745355466148,0.30781225,1693.6,1693.5,6.74694444]
[1745355466850,0.30781225,1693.6,1693.5,5.91984444]
[1745355467757,6.08186821,1693.8,1693.5,5.91984444]
[1745355468076,6.38965084,1693.8,1693.5,5.91984444]
[1745355468250,6.38965084,1693.8,1693.5,6.36793164]
[1745355468563,7.16515923,1693.8,1693.4,5.91984444]
[1745355470573,0.7751,1693.7,1693.4,5.91984444]
[1745355471557,0.7751,1693.7,1693.4,6.35488785]
[1745355471757,0.7751,1693.7,1693.5,5.91984444]
[1745355472320,6.38965084,1693.8,1693.5,5.91984444]
[1745355472555,7.16515923,1693.8,1693.5,5.91984444]
[1745355475372,7.16515923,1693.8,1693.4,1.27648966]
[1745355475574,0.7751,1693.7,1693.4,0.44938966]
[1745355476055,0.7751,1693.7,1693.4,0.45124719]
[1745355476256,0.7751,1693.7,1693.3,5.91984444]
[1745355476426,1.56912592,1693.7,1693.2,1.11580373]
[1745355476627,1.56912592,1693.7,1693.3,5.91984444]
[1745355477030,0.7965,1693.6,1693.0,11.1]
[1745355477229,6.87836821,1693.6,1693.0,11.4128212]
[1745355477560,1.23783682,1693.5,1693.0,11.4148212]
[1745355478361,0.7965,1693.4,1693.0,10.97184444]
[1745355478565,0.7965,1693.4,1693.0,5.91984444]
[1745355480437,0.55,1693.3,1693.0,5.91984444]
[1745355480634,0.55,1693.3,1692.9,0.4048979]
[1745355480858,0.7965,1693.2,1692.9,0.4048979]
[1745355481372,6.08186821,1693.4,1693.0,5.91984444]
[1745355481373,6.87836821,1693.4,1693.0,5.91984444]
[1745355481558,0.68783682,1693.3,1693.0,5.91984444]
[1745355482064,1.3465,1693.2,1692.9,0.4048979]
[1745355482274,0.7965,1693.2,1692.9,3.4048979]
[1745355482476,0.7965,1693.2,1693.0,5.91984444]
[1745355483337,1.10432881,1693.2,1693.0,5.91984444]
[1745355483769,0.30782881,1693.2,1693.1,0.8261]
[1745355484166,0.30782881,1693.2,1693.1,3.8261]
[1745355484472,0.30782881,1693.2,1693.1,3.0]
[1745355485632,6.87036821,1693.4,1693.1,3.0]
[1745355485837,7.68118871,1693.4,1693.1,3.0]
[1745355486137,0.30782607,1693.2,1693.1,3.0]
[1745355487382,0.30782607,1693.2,1692.9,0.4048979]
[1745355487583,0.7885,1693.1,1692.9,3.4048979]
[1745355488453,0.7885,1693.1,1692.9,0.4048979]
[1745355489269,6.87036821,1693.1,1692.9,0.4048979]
[1745355493248,7.24517454,1693.0,1692.9,0.4048979]
[1745355493447,1.3385,1693.0,1692.9,0.4048979]
[1745355495148,7.24517454,1693.0,1692.9,0.4048979]
[1745355498272,1.3385,1693.0,1692.9,0.4048979]
[1745355500192,6.3925,1693.0,1692.9,0.4048979]
[1745355500269,8.23057236,1693.0,1692.9,0.4048979]
[1745355501267,0.30792293,1693.0,1692.9,0.4048979]
[1745355502248,0.30792293,1693.0,1692.9,6.32474234]
[1745355502759,11.94668871,1693.4,1693.0,3.0]
[1745355502760,6.08186821,1693.4,1693.0,3.0]
[1745355502972,6.08186821,1693.4,1693.2,6.74984444]
[1745355503281,0.30785918,1693.4,1693.2,6.74984444]
[1745355503582,0.30785918,1693.4,1693.3,3.0]
[1745355503886,11.95066821,1693.9,1693.3,3.0]
[1745355504080,0.30783749,1693.6,1693.4,5.91984444]
[1745355504383,6.89666821,1693.9,1693.5,5.91984444]
[1745355504605,0.30782074,1693.8,1693.6,0.83]
[1745355506300,0.30782074,1693.8,1693.7,5.91984444]
[1745355506509,0.30782074,1693.8,1693.7,8.91984444]
[1745355506805,6.08186821,1694.1,1693.7,8.91984444]
[1745355507001,6.38966538,1694.1,1694.0,5.91984444]
[1745355507209,0.30779717,1694.1,1694.0,5.91984444]
[1745355509213,5.90124541,1694.6,1694.1,0.8048]
[1745355509214,0.8314,1694.6,1694.1,0.8048]
[1745355509506,0.30777168,1694.4,1694.2,5.91984444]
[1745355511074,0.30777168,1694.4,1694.3,3.0]
[1745355511278,6.91326821,1694.8,1694.3,3.0]
[1745355511489,0.3077301,1694.6,1694.4,5.91984444]
[1745355511783,0.3077301,1694.6,1694.4,7.61662888]
[1745355520034,0.3077301,1694.6,1694.5,3.0]
[1745355520214,0.8314,1695.0,1694.5,3.0]